bitfinex/quotes_ETHUSD_20230703
["timestamp","ask_amount","ask_price","bid_price","bid_amount"]
[1688373021034,12.73609816,1965.2,1964.6,10.17992]
[1688373021450,12.73609816,1965.2,1964.6,11.91448948]
[1688373021957,12.73609816,1965.2,1964.6,12.82148948]
[1688373022532,12.73609816,1965.2,1964.6,15.36652948]
[1688373023457,2.55878816,1965.1,1964.6,5.08994]
[1688373023656,5.08917,1965.0,1964.6,5.08994]
[1688373024091,12.73669816,1965.1,1964.6,11.08703]
[1688373024256,7.64773816,1965.1,1964.6,11.08703]
[1688373024794,7.64773816,1965.1,1964.7,5.73773]
[1688373024943,12.73661816,1965.1,1964.7,5.08973]
[1688373025295,7.64766816,1965.1,1964.7,5.08973]
[1688373025501,7.64766816,1965.1,1964.7,10.17956]
[1688373025710,5.08867,1965.2,1964.7,11.906027]
[1688373025853,7.64745816,1965.2,1964.7,11.906027]
[1688373026054,7.64745816,1965.2,1964.8,2.6269]
[1688373026307,12.73607816,1965.2,1964.8,7.71643]
[1688373026751,12.73607816,1965.2,1964.8,2.6269]
[1688373026953,15.28034816,1965.2,1964.8,2.6269]
[1688373027154,2.55878816,1965.1,1964.8,2.6269]
[1688373027393,5.08905,1965.0,1964.8,2.6269]
[1688373027695,7.64783816,1965.0,1964.8,2.6269]
[1688373028185,10.17793,1965.1,1964.8,2.6269]
[1688373028369,12.73671816,1965.1,1964.8,2.6269]
[1688373029111,0.01648212,1965.3,1964.8,13.45102]
[1688373029112,5.08837,1965.3,1964.8,13.45102]
[1688373029268,2.55878816,1965.2,1964.9,0.647]
[1688373029462,5.08837,1965.3,1964.9,0.647]
[1688373029463,10.17681,1965.3,1964.9,0.647]
[1688373029687,10.17681,1965.3,1964.8,13.45178]
[1688373029983,10.17681,1965.3,1964.8,12.145488]
[1688373031372,5.08885,1965.1,1964.8,4.8104]
[1688373032980,10.1777,1965.1,1964.8,4.8104]
[1688373034492,5.08885,1965.1,1964.8,4.8104]
[1688373036310,2.55878816,1965.0,1964.5,5.8737948]
[1688373036510,5.08933,1964.9,1964.6,2.6655]
[1688373036718,5.08912,1965.0,1964.6,17.40167048]
[1688373036911,5.08912,1965.0,1964.7,0.648]
[1688373037210,5.08912,1965.0,1964.7,10.82739]
[1688373037510,5.08894,1965.1,1964.7,10.82739]
[1688373037944,5.08869,1965.2,1964.7,10.82739]
[1688373038126,2.55878816,1965.2,1964.9,0.02767351]
[1688373038318,10.17695,1965.3,1964.9,5.08921]
[1688373038643,12.73573816,1965.3,1964.9,7.81401]
[1688373038846,7.64720816,1965.3,1964.9,7.81401]
[1688373039640,12.73571816,1965.3,1964.9,2.7248]
[1688373041246,10.59320735,1965.4,1965.0,0.647]
[1688373041446,13.15199551,1965.4,1965.1,0.03284818]
[1688373042237,13.15199551,1965.4,1965.0,5.73584]
[1688373042444,13.15199551,1965.4,1965.0,5.08884]
[1688373043950,5.50497735,1965.4,1965.0,12.2600713]
[1688373044109,0.41678735,1965.4,1965.0,14.1431713]
[1688373044309,10.17579,1965.5,1965.1,0.0274396]
[1688373044513,10.17579,1965.5,1965.1,5.1161596]
[1688373044852,10.17579,1965.5,1965.1,6.53318769]
[1688373044853,10.07579,1965.5,1965.1,6.53318769]
[1688373045049,4.98788,1965.5,1965.1,7.15174809]
[1688373045256,10.19173212,1965.6,1965.2,0.02702353]
[1688373045467,12.75052028,1965.6,1965.2,0.02702353]
[1688373045744,12.75052028,1965.6,1965.1,11.59453809]
[1688373045920,12.75052028,1965.6,1965.2,3.83835381]
[1688373046757,12.75052028,1965.6,1965.2,2.6789]
[1688373046758,15.29427028,1965.6,1965.2,2.6789]
[1688373047122,15.70718362,1965.6,1965.2,2.6789]
[1688373047844,15.70718362,1965.6,1965.3,0.02750825]
[1688373048048,15.70718362,1965.6,1965.2,2.6789]
[1688373052548,15.70718362,1965.6,1965.3,0.02839403]
[1688373052751,15.70718362,1965.6,1965.2,2.6789]
[1688373054723,15.70718362,1965.6,1965.2,8.544197]
[1688373054930,15.70718362,1965.6,1965.3,0.02860936]
[1688373055329,15.6907015,1965.6,1965.3,0.02860936]
[1688373055646,15.6907015,1965.6,1965.2,2.6789]
[1688373057250,15.6907015,1965.6,1965.2,12.85595]
[1688373057251,8.0592715,1965.6,1965.2,12.85595]
[1688373057452,5.50048334,1965.6,1965.3,1.32506559]
[1688373057630,10.58816334,1965.6,1965.3,1.32506559]
[1688373057830,10.58816334,1965.6,1965.3,6.41330559]
[1688373058030,10.58816334,1965.6,1965.3,1.32506559]
[1688373058431,10.58816334,1965.6,1965.3,1.285595]
[1688373058654,10.58816334,1965.6,1965.4,0.02827435]
[1688373059660,10.58816334,1965.6,1965.3,6.373865]
[1688373059860,10.58816334,1965.6,1965.3,1.285595]
[1688373060027,10.58816334,1965.6,1965.3,6.373845]
[1688373060225,10.58816334,1965.6,1965.4,0.6373845]
[1688373060535,10.58816334,1965.6,1965.2,10.03286]
[1688373061062,10.58816334,1965.6,1965.3,0.0273964]
[1688373061544,10.58816334,1965.6,1965.2,15.12131]
[1688373063134,5.50045334,1965.6,1965.2,18.31058]
[1688373063337,5.50045334,1965.6,1965.3,1.85894543]
[1688373063638,5.50045334,1965.6,1965.3,6.94716543]
[1688373064255,5.50045334,1965.6,1965.3,6.919278]
[1688373064472,5.50045334,1965.6,1965.4,0.03010697]
[1688373066328,0.41291334,1965.6,1965.4,5.11808697]
[1688373066549,0.41291334,1965.6,1965.4,6.32181747]
[1688373066861,10.17475,1965.7,1965.4,6.32181747]
[1688373067027,12.73353816,1965.7,1965.4,6.32181747]
[1688373067219,8.04438525,1965.7,1965.4,6.2917105]
[1688373067420,2.95703525,1965.7,1965.4,6.2917105]
[1688373067651,2.95703525,1965.7,1965.5,0.03194359]
[1688373067857,2.95703525,1965.7,1965.3,12.007358]
[1688373068054,2.95703525,1965.7,1965.4,6.01212545]
[1688373068273,0.39824709,1965.7,1965.4,6.01212545]
[1688373068456,0.39824709,1965.7,1965.4,11.10014545]
[1688373068656,1.00202561,1965.8,1965.5,0.03048133]
[1688373068822,2.55878816,1965.8,1965.5,5.08768]
[1688373069021,2.55878816,1965.8,1965.5,8.73306055]
[1688373069920,2.55878816,1965.8,1965.5,13.82082055]
[1688373070361,2.49414901,1965.8,1965.5,13.82082055]
[1688373071236,7.58112901,1965.8,1965.6,0.03002433]
[1688373071449,12.66811901,1965.8,1965.4,10.58364545]
[1688373071758,12.66811901,1965.8,1965.5,1.05836455]
[1688373071956,12.66811901,1965.8,1965.4,10.58364545]
[1688373073793,5.61581217,1966.0,1965.4,10.58364545]
[1688373073794,2.42458217,1966.0,1965.6,0.643]
[1688373073946,3.96490233,1966.0,1965.4,8.03976545]
[1688373074156,3.96490233,1966.0,1965.7,5.08719]
[1688373074441,3.96490233,1966.0,1965.8,0.03822439]
[1688373074641,3.96490233,1966.0,1965.8,5.12516439]
[1688373074845,3.96490233,1966.0,1965.7,5.08712]
[1688373075045,3.96490233,1966.0,1965.8,0.03364743]
[1688373075350,3.561178,1966.3,1965.8,11.57119617]
[1688373075351,5.08581,1966.3,1965.8,11.57119617]
[1688373075560,12.73052816,1966.3,1965.8,11.57119617]
[1688373075744,12.73052816,1966.3,1965.8,11.53754874]
[1688373076295,7.64459816,1966.3,1965.8,8.76396874]
[1688373076573,13.14525878,1966.3,1965.8,8.76396874]
[1688373077350,13.14525878,1966.3,1965.9,0.87639687]
[1688373079780,13.14525878,1966.3,1965.9,13.59319687]
[1688373079781,5.50053062,1966.3,1965.9,13.59319687]
[1688373079943,5.50053062,1966.3,1966.1,0.645]
[1688373079944,0.41481062,1966.3,1966.1,0.645]
[1688373080139,0.41481062,1966.3,1966.0,10.05439]
[1688373080366,5.0856,1966.4,1966.1,1.005439]
[1688373080584,5.08532,1966.5,1966.1,6.091619]
[1688373080851,7.64410816,1966.5,1966.1,6.734619]
[1688373081777,2.55878816,1966.5,1966.3,0.647]
[1688373081993,0.4126705,1966.6,1966.3,0.647]
[1688373082169,0.4126705,1966.6,1966.3,1.220293]
[1688373082367,5.08481,1966.7,1966.3,1.220293]
[1688373082589,12.72841816,1966.7,1966.3,3.286593]
[1688373083288,7.64359816,1966.7,1966.3,3.286593]
[1688373083468,7.64359816,1966.7,1966.3,8.372273]
[1688373083672,7.64359816,1966.7,1966.4,0.8372273]
[1688373087893,0.29948862,1966.8,1966.4,13.5506673]
[1688373088076,0.29948862,1966.8,1966.5,0.0520995]
[1688373088247,10.1681,1967.0,1966.6,10.16982]
[1688373088456,5.08403,1967.0,1966.7,1.0690815]
[1688373088663,5.08403,1967.0,1966.7,6.1537015]
[1688373088991,5.48969962,1967.0,1966.7,6.1537015]
[1688373089283,5.48969962,1967.0,1966.7,11.2383515]
[1688373089284,5.48957962,1967.0,1966.7,11.2383515]
[1688373089459,5.08375,1967.1,1966.7,11.2383515]
[1688373089658,10.16749,1967.1,1966.8,1.17593465]
[1688373089985,5.08374,1967.1,1966.8,1.17593465]
[1688373091593,10.16698,1967.2,1966.8,1.17593465]
[1688373091762,2.55878816,1967.2,1966.8,1.82093465]
[1688373091966,0.40477758,1967.2,1966.8,11.98968465]
[1688373092261,11.16869781,1967.4,1967.0,0.647]
[1688373092462,12.72480816,1967.4,1967.0,0.647]
[1688373093101,12.72480816,1967.4,1967.0,5.73088]
[1688373093310,12.72474816,1967.4,1967.0,5.73088]
[1688373093672,12.72474816,1967.4,1967.0,7.87188]
[1688373093855,12.72474816,1967.4,1967.0,1.69490085]
[1688373093856,2.55878816,1967.3,1967.0,1.69490085]
[1688373094054,5.08336,1967.2,1966.9,1.19896846]
[1688373094297,2.55878816,1967.1,1966.6,10.66499]
[1688373094482,5.08368,1967.1,1966.7,12.71159]
[1688373094765,10.16697,1967.2,1966.7,12.71159]
[1688373094967,10.16697,1967.2,1966.7,13.35659]
[1688373095172,5.08347,1967.2,1966.9,5.08414]
[1688373095601,5.08321,1967.3,1966.9,10.81628]
[1688373095759,7.62439,1967.4,1966.9,10.81628]
[1688373095760,10.16596,1967.4,1966.9,10.81628]
[1688373095962,12.72474816,1967.4,1967.0,2.731]
[1688373096299,7.64174816,1967.4,1967.0,11.310528]
[1688373096707,2.55878816,1967.4,1967.0,16.394408]
[1688373097010,1.45009054,1967.6,1967.1,0.648]
[1688373097191,1.45009054,1967.6,1967.0,18.936348]
[1688373097192,2.96779557,1967.6,1967.0,18.936348]
[1688373097359,2.55878816,1967.6,1967.0,18.936348]
[1688373097560,2.55878816,1967.6,1967.2,10.16648]
[1688373097800,2.55878816,1967.6,1967.3,5.73101]
[1688373098100,5.08209,1967.7,1967.3,5.73101]
[1688373098300,2.55878816,1967.7,1967.3,7.68911]
[1688373098964,2.55878816,1967.7,1967.3,13.41821]
[1688373099290,5.08194,1967.8,1967.4,1.341821]
[1688373099601,10.16339,1967.9,1967.4,8.525561]
[1688373099763,12.72217816,1967.9,1967.4,8.525561]
[1688373099965,7.64047816,1967.9,1967.4,8.525561]
[1688373100181,5.0814,1968.0,1967.4,6.424461]
[1688373100383,12.67195816,1967.9,1967.5,0.6424461]
[1688373100593,12.67195816,1967.9,1967.6,0.04495762]
[1688373101212,12.67195816,1967.9,1967.6,2.84155762]
[1688373102058,15.85872816,1967.9,1967.6,0.04495762]
[1688373102298,15.85872816,1967.9,1967.2,10.02584762]
[1688373102474,15.85872816,1967.9,1967.3,1.00258476]
[1688373102796,15.21272816,1967.9,1967.4,0.04495762]
[1688373103986,15.85572816,1967.9,1967.4,0.04495762]
[1688373104898,15.85572816,1967.9,1967.2,4.8977]
[1688373105101,15.85572816,1967.9,1967.3,0.03339084]
[1688373105414,0.01648212,1967.8,1967.3,1.03483392]
[1688373105572,10.16476,1967.6,1967.3,1.03483392]
[1688373106192,10.16476,1967.6,1967.3,1.00144308]
[1688373108816,10.16476,1967.6,1967.0,0.39700742]
[1688373108817,2.55878816,1967.5,1967.0,0.39700742]
[1688373108985,10.16594,1967.4,1967.0,10.27865742]
[1688373109352,7.64189816,1967.3,1967.0,14.96553]
[1688373109700,2.55878816,1967.3,1967.0,14.96553]
[1688373110164,2.55878816,1967.3,1966.5,5.08513]
[1688373110165,5.323,1966.4,1966.3,0.12548996]
[1688373110326,2.55878816,1966.4,1965.5,0.91140625]
[1688373110502,2.55878816,1966.4,1965.5,0.12906138]
[1688373110503,12.71577,1966.1,1965.5,0.12906138]
[1688373110711,5.08685,1965.9,1965.5,0.74241614]
[1688373110937,5.08685,1965.9,1965.4,2.2072]
[1688373110938,2.55878816,1965.8,1965.4,2.2072]
[1688373111145,2.55878816,1965.8,1965.3,0.1]
[1688373111146,12.71822,1965.7,1965.3,0.1]
[1688373111445,2.55878816,1965.8,1965.3,0.1]
[1688373111446,10.17552,1965.5,1965.3,0.1]
[1688373111655,12.7194,1965.5,1965.3,0.1]
[1688373112140,10.17552,1965.5,1965.3,0.1]
[1688373112309,10.17552,1965.5,1965.3,0.38334]
[1688373112646,5.08776,1965.5,1965.3,0.38334]
[1688373112808,10.17552,1965.5,1965.3,0.38334]
[1688373115045,15.27818816,1965.5,1965.3,0.1]
[1688373116446,15.27883816,1965.4,1965.3,0.1]
[1688373119361,21.50883816,1965.4,1965.3,0.1]
[1688373119676,22.32037896,1965.4,1965.0,0.1]
[1688373119828,21.50883816,1965.4,1965.0,0.1]
[1688373120937,20.60183816,1965.4,1965.0,0.1]
[1688373121271,15.26636,1965.1,1965.0,0.1]
[1688373121429,17.82514816,1965.1,1965.0,0.1]
[1688373122825,17.82514816,1965.1,1965.0,2.6]
[1688373124655,15.28075816,1965.1,1965.0,2.6]
[1688373124854,12.72197,1965.1,1965.0,2.86]
[1688373125383,12.72197,1965.1,1965.0,2.6]
[1688373125959,1.018535,1965.8,1965.0,2.6]
[1688373126154,5.08863,1965.2,1965.0,7.68905]
[1688373128108,10.17692,1965.3,1965.0,7.68905]
[1688373128296,10.17692,1965.3,1965.1,0.768905]
[1688373129221,10.17692,1965.3,1965.1,5.857695]
[1688373130005,10.17692,1965.3,1965.1,0.768905]
[1688373130203,12.72106,1965.3,1965.1,0.768905]
[1688373130400,12.72106,1965.3,1965.0,2.6]
[1688373134972,10.17692,1965.3,1965.0,7.68901]
[1688373140216,10.17692,1965.3,1965.0,2.6]
[1688373140616,10.17692,1965.3,1965.0,7.689]
[1688373140826,10.17692,1965.3,1965.0,2.6]
[1688373141408,10.17692,1965.3,1965.0,5.2814]
[1688373142220,10.17692,1965.3,1965.0,5.9583367]
[1688373142525,2.55878816,1965.2,1965.0,2.6]
[1688373142707,12.72197,1965.1,1965.0,2.6]
[1688373142910,15.28075816,1965.1,1965.0,2.6]
[1688373143733,20.60375816,1965.1,1965.0,2.6]
[1688373144734,25.96664951,1965.1,1965.0,2.6]
[1688373146554,24.51075816,1965.1,1965.0,2.6]
[1688373146709,2.5,1963.6,1963.4,0.1]
[1688373146896,0.43229966,1962.9,1962.6,0.62664006]
[1688373147120,0.43229966,1962.9,1962.6,0.1]
[1688373147121,18.0599,1962.8,1962.6,0.1]
[1688373147292,18.0599,1962.8,1962.6,0.6]
[1688373147691,18.0599,1962.8,1962.6,0.1]
[1688373147914,18.0599,1962.8,1962.5,1.9910294]
[1688373148227,19.987125,1962.8,1962.5,1.9910294]
[1688373149022,19.987125,1962.8,1962.5,1.4910294]
[1688373149188,19.987125,1962.8,1962.5,1.9910294]
[1688373149997,19.987125,1962.8,1962.5,1.4910294]
[1688373150495,19.987125,1962.8,1962.5,1.9910294]
[1688373150817,19.080125,1962.8,1962.5,1.9910294]
[1688373152880,19.983125,1962.8,1962.5,1.9910294]
[1688373154417,19.983125,1962.8,1962.5,4.4910294]
[1688373155700,19.080125,1962.8,1962.5,4.4910294]
[1688373155896,19.080125,1962.8,1962.5,1.9910294]
[1688373156517,0.907,1962.6,1962.5,1.4910294]
[1688373156716,21.51584,1962.6,1962.5,1.4910294]
[1688373156961,20.60884,1962.6,1962.5,1.4910294]
[1688373157101,12.7382,1962.6,1962.5,1.4910294]
[1688373158257,7.250225,1962.8,1962.7,0.5]
[1688373158258,5.09489,1962.8,1962.7,0.5]
[1688373158545,47.91,1963.3,1963.1,0.5]
[1688373158546,12.73365,1963.3,1963.1,0.5]
[1688373158916,2.54701,1963.1,1962.8,0.05040656]
[1688373159121,2.54701,1963.1,1962.7,0.5]
[1688373159122,15.2835,1962.9,1962.7,0.5]
[1688373159435,12.73625,1962.9,1962.7,0.5]
[1688373159660,12.73625,1962.9,1962.6,0.5]
[1688373159836,12.73625,1962.9,1962.7,0.02779387]
[1688373160042,12.73625,1962.9,1962.6,0.5]
[1688373160405,12.73625,1962.9,1962.8,0.5]
[1688373161110,15.29503816,1962.9,1962.8,0.5]
[1688373162760,20.61803816,1962.9,1962.8,0.5]
[1688373164038,25.40611601,1962.9,1962.5,1.4910294]
[1688373164212,10.42942816,1962.6,1962.5,1.4910294]
[1688373164428,24.03220314,1962.6,1962.5,1.4910294]
[1688373164744,18.70920314,1962.6,1962.5,1.4910294]
[1688373165542,24.03220314,1962.6,1962.5,1.4910294]
[1688373165740,24.51220314,1962.6,1962.5,1.4910294]
[1688373166290,24.51220314,1962.6,1962.3,0.1]
[1688373166291,7.88178816,1962.4,1962.3,0.1]
[1688373166424,14.00091895,1962.4,1962.3,0.1]
[1688373166621,28.06918816,1962.4,1962.2,0.1]
[1688373166864,11.67418389,1962.3,1962.2,0.1]
[1688373167163,24.41433389,1962.3,1962.2,0.1]
[1688373167393,24.41433389,1962.3,1961.6,0.010379]
[1688373167394,5.323,1962.1,1961.6,0.010379]
[1688373167554,5.323,1961.8,1961.6,0.010379]
[1688373167864,15.30280816,1961.7,1961.6,0.010379]
[1688373168452,7.65639816,1961.7,1961.6,0.010379]
[1688373168835,12.75400816,1961.7,1961.6,0.010379]
[1688373169033,7.65639816,1961.7,1961.6,0.010379]
[1688373169234,12.75400816,1961.7,1961.6,0.010379]
[1688373170353,7.65639816,1961.7,1961.6,0.010379]
[1688373170549,12.75400816,1961.7,1961.6,0.010379]
[1688373170999,15.30280816,1961.7,1961.6,0.010379]
[1688373171299,7.65639816,1961.7,1961.6,0.010379]
[1688373171452,12.75400816,1961.7,1961.6,0.010379]
[1688373171953,5.09702,1962.0,1961.9,0.5]
[1688373172150,2.55878816,1962.0,1961.9,0.5]
[1688373172350,2.55878816,1962.0,1961.9,0.54243258]
[1688373172775,5.09639,1962.2,1962.1,0.5]
[1688373172985,7.65517816,1962.2,1962.1,0.5]
[1688373173150,12.75142816,1962.2,1962.1,0.5]
[1688373173347,12.75142816,1962.2,1962.1,0.52887155]
[1688373173552,7.65510816,1962.2,1962.1,0.52887155]
[1688373173979,7.65510816,1962.2,1962.1,0.5]
[1688373174610,5.5962,1962.3,1962.1,5.59658]
[1688373174808,5.09592,1962.4,1962.3,0.5]
[1688373174955,7.65470816,1962.4,1962.3,0.53217165]
[1688373175380,30.56,1962.8,1962.6,0.5]
[1688373175575,2.55878816,1962.7,1962.6,0.5]
[1688373175796,7.65380816,1962.7,1962.6,0.52822009]
[1688373176101,5.09502,1962.7,1962.6,0.52822009]
[1688373176269,5.09486,1962.8,1962.6,0.52822009]
[1688373176601,5.09486,1962.8,1962.7,0.04182629]
[1688373176602,12.74851816,1962.8,1962.7,0.04182629]
[1688373176907,15.29589816,1962.8,1962.7,0.04182629]
[1688373177462,15.29589816,1962.8,1962.6,0.5]
[1688373177865,15.29589816,1962.8,1962.7,0.04182629]
[1688373178097,12.74851816,1962.8,1962.7,0.04182629]
[1688373178311,10.18973,1962.8,1962.7,0.04182629]
[1688373178594,5.09465,1962.9,1962.8,0.5]
[1688373178799,7.65343816,1962.9,1962.8,0.5]
[1688373178998,5.09465,1962.9,1962.8,0.5]
[1688373179299,5.09435,1963.0,1962.9,0.02782871]
[1688373179500,5.094,1963.1,1963.0,0.5]
[1688373179708,12.74687816,1963.1,1963.0,0.5]
[1688373180391,15.29386816,1963.1,1963.0,0.5]
[1688373180777,15.79386816,1963.1,1963.0,0.5]
[1688373181588,10.68809,1963.1,1963.0,0.5]
[1688373181930,5.594,1963.1,1963.0,0.5]
[1688373182775,5.594,1963.1,1963.0,1.059448]
[1688373182776,0.5,1963.1,1963.0,1.059448]
[1688373182989,47.91,1963.2,1963.0,6.153688]
[1688373183220,2.55878816,1963.1,1963.0,5.09424]
[1688373183417,2.55878816,1963.1,1962.9,0.5]
[1688373183418,15.29373816,1963.1,1962.9,0.5]
[1688373183620,63.20373816,1963.1,1962.9,0.5]
[1688373183913,64.22366616,1963.1,1962.9,0.5]
[1688373184222,18.0586,1963.0,1962.6,0.5]
[1688373184378,2.55878816,1962.9,1962.6,0.5]
[1688373184718,2.55878816,1962.7,1962.1,1.404]
[1688373184925,15.28662,1962.5,1962.4,0.5]
[1688373185094,17.84540816,1962.5,1962.4,0.5]
[1688373186912,10.19108,1962.5,1962.4,0.5]
[1688373187094,5.09554,1962.5,1962.4,0.5]
[1688373187301,5.09554,1962.5,1962.4,0.45]
[1688373187499,10.19108,1962.5,1962.4,0.45]
[1688373187730,5.09538,1962.6,1962.4,0.45]
[1688373188044,50.45754,1962.7,1962.4,1.354]
[1688373188045,58.10033,1962.7,1962.4,1.354]
[1688373188228,58.10033,1962.7,1962.6,0.45]
[1688373190860,63.20662816,1962.7,1962.6,0.45]
[1688373192071,63.20662816,1962.7,1962.2,11.09737]
[1688373192072,63.20662816,1962.7,1962.5,0.45]
[1688373192578,5.323,1962.5,1962.0,3.226]
[1688373192728,17.84656816,1962.4,1962.0,0.45]
[1688373192925,22.94249816,1962.4,1962.0,0.45]
[1688373193644,30.26549816,1962.4,1962.0,0.45]
[1688373193849,3.0,1962.3,1962.0,0.45]
[1688373194052,17.84774816,1962.2,1962.0,0.45]
[1688373198581,17.84774816,1962.2,1961.8,0.45]
[1688373199433,17.84774816,1962.2,1961.7,2.8706]
[1688373199633,12.7408,1962.2,1961.9,0.907]
[1688373199926,78.47,1962.7,1961.9,0.907]
[1688373200073,5.09565,1962.5,1961.9,10.19417]
[1688373200233,5.09565,1962.5,1961.9,5.09708]
[1688373200567,5.09564,1962.5,1962.2,0.905]
[1688373200772,10.19118,1962.5,1962.2,0.905]
[1688373201158,15.29773816,1962.5,1962.0,1.416708]
[1688373201481,15.29773816,1962.5,1962.0,0.907]
[1688373202186,2.55878816,1962.4,1961.7,3.50411796]
[1688373202393,10.19268,1962.2,1961.8,3.0907]
[1688373202592,5.09634,1962.2,1961.9,0.30907]
[1688373202762,5.0963,1962.3,1962.0,0.907]
[1688373203149,5.0963,1962.3,1962.0,6.00382]
[1688373204771,10.19188,1962.4,1962.0,6.00382]
[1688373204974,2.56427212,1962.5,1962.2,0.903]
[1688373204975,5.09565,1962.5,1962.2,0.903]
[1688373205276,5.09565,1962.5,1962.3,5.09606]
[1688373205474,5.09565,1962.5,1962.3,6.205586]
[1688373205880,5.09565,1962.5,1962.3,1.109526]
[1688373206096,5.09565,1962.5,1962.3,6.205566]
[1688373206624,10.19086,1962.6,1962.3,6.205566]
[1688373206783,5.09541,1962.6,1962.4,0.905]
[1688373206981,5.09541,1962.6,1962.4,2.1256606]
[1688373207422,10.19086,1962.6,1962.4,2.1256606]
[1688373207660,5.09541,1962.6,1962.4,2.1256606]
[1688373207804,5.09541,1962.6,1962.4,0.905]
[1688373208002,47.91,1962.7,1962.4,0.905]
[1688373208234,47.91,1962.7,1962.6,0.9]
[1688373208902,53.00502,1962.7,1962.6,0.9]
[1688373209540,53.00502,1962.7,1962.4,0.906]
[1688373209740,53.00502,1962.7,1962.4,1.506189]
[1688373210130,47.91,1962.7,1962.4,1.506189]
[1688373210636,53.00505,1962.7,1962.4,1.506189]
[1688373210842,58.1001,1962.7,1962.4,0.906]
[1688373211145,53.00505,1962.7,1962.2,8.43892]
[1688373211366,58.1001,1962.7,1962.2,8.43892]
[1688373211525,58.1001,1962.7,1962.2,5.99528]
[1688373212157,60.64761,1962.7,1962.2,5.99528]
[1688373212373,60.64761,1962.7,1962.2,7.328685]
[1688373212675,60.64761,1962.7,1962.2,12.425005]
[1688373212968,58.1001,1962.7,1962.2,12.425005]
[1688373213123,53.00505,1962.7,1962.2,12.425005]
[1688373213322,47.91,1962.7,1962.4,6.00072]
[1688373213557,47.91,1962.7,1962.4,7.110386]
[1688373214165,53.00503,1962.7,1962.4,2.014666]
[1688373215442,58.10006,1962.7,1962.4,2.014666]
[1688373215856,53.00503,1962.7,1962.4,7.110426]
[1688373216072,53.00503,1962.7,1962.6,0.904]
[1688373216073,47.91,1962.7,1962.6,0.904]
[1688373216827,53.00502,1962.7,1962.4,2.008666]
[1688373217454,53.00502,1962.7,1962.4,7.104436]
[1688373217889,53.00502,1962.7,1962.4,5.99477]
[1688373218038,58.10004,1962.7,1962.4,0.899]
[1688373219266,58.10004,1962.7,1962.4,5.99468]
[1688373219871,53.00502,1962.7,1962.4,5.99468]
[1688373221173,53.00502,1962.7,1962.4,5.09568]
[1688373221477,47.91,1962.7,1962.4,11.210636]
[1688373222086,47.91,1962.7,1962.4,14.658536]
[1688373222545,53.00508,1962.7,1962.4,14.658536]
[1688373222965,47.91,1962.7,1962.4,14.658536]
[1688373223164,47.91,1962.7,1962.6,0.906]
[1688373223366,47.91,1962.7,1962.6,11.09656]
[1688373223577,47.91,1962.7,1962.6,12.460988]
[1688373227576,47.91,1962.7,1962.6,15.008628]
[1688373228274,47.91,1962.7,1962.6,6.00128]
[1688373228484,53.00502,1962.7,1962.5,10.19081]
[1688373229281,47.91,1962.7,1962.5,10.19081]
[1688373234295,47.91,1962.7,1962.4,0.907]
[1688373234497,60.64759,1962.7,1962.3,2.5689]
[1688373235604,60.64759,1962.7,1962.0,5.09671]
[1688373235605,2.55878816,1962.6,1962.0,5.09671]
[1688373235765,10.19137,1962.5,1962.0,7.61201]
[1688373236164,10.19137,1962.5,1962.0,8.01251393]
[1688373237084,10.19137,1962.5,1962.0,13.10934393]
[1688373237448,7.65472816,1962.4,1962.0,7.61201]
[1688373237662,12.75066816,1962.4,1962.0,7.61201]
[1688373239164,20.25066816,1962.4,1961.1,2.0]
[1688373239373,30.57648212,1962.3,1961.5,5.85702864]
[1688373239703,40.76887212,1962.3,1962.0,5.09683]
[1688373239907,10.20887212,1962.3,1962.0,10.19366]
[1688373240110,5.11257212,1962.3,1962.0,5.09683]
[1688373240280,5.11257212,1962.3,1962.0,10.19366]
[1688373240709,5.11257212,1962.3,1962.0,11.46788]
[1688373240907,0.01648212,1962.3,1962.0,11.46788]
[1688373241198,5.11256212,1962.3,1962.0,1.27422]
[1688373241356,5.11256212,1962.3,1962.0,5.09683]
[1688373241674,10.20864212,1962.3,1961.9,11.09882]
[1688373241875,10.20864212,1962.3,1961.9,5.09687]
[1688373242085,12.75667212,1962.3,1961.9,10.19396]
[1688373242576,10.20864212,1962.3,1961.9,10.19396]
[1688373244817,5.09608,1962.3,1961.9,11.10096]
[1688373244990,5.09608,1962.3,1962.0,1.110096]
[1688373245316,15.14386,1962.4,1962.0,11.303716]
[1688373245317,7.5,1962.4,1962.0,11.303716]
[1688373245620,5.09565,1962.5,1962.0,13.852126]
[1688373245989,7.0,1962.4,1962.0,13.852126]
[1688373246807,12.09583,1962.4,1962.0,13.852126]
[1688373247013,12.09583,1962.4,1962.1,6.4817026]
[1688373249206,17.19166,1962.4,1962.1,6.4817026]
[1688373249382,17.69166,1962.4,1962.1,1.3852126]
[1688373250493,17.69166,1962.4,1961.9,6.40204512]
[1688373250817,17.48880077,1962.4,1961.9,11.49900512]
[1688373251521,17.48880077,1962.4,1961.9,14.04754512]
[1688373251712,11.89297077,1962.4,1961.9,14.04754512]
[1688373253399,6.79714077,1962.4,1961.9,14.04754512]
[1688373253588,6.79714077,1962.4,1962.1,10.19304]
[1688373254620,6.79714077,1962.5,1962.1,11.10004]
[1688373254831,6.79714077,1962.5,1962.1,10.84304]
[1688373255400,11.89274077,1962.5,1962.1,10.84304]
[1688373261230,11.89274077,1962.5,1962.1,10.19304]
[1688373261592,11.89274077,1962.5,1962.1,6.21597977]
[1688373262505,11.89274077,1962.5,1962.1,6.63079949]
[1688373263231,16.98834077,1962.5,1962.1,1.53427949]
[1688373263430,16.98834077,1962.5,1962.1,0.41481972]
[1688373263589,19.53611077,1962.5,1962.1,0.41481972]
[1688373263795,19.53611077,1962.5,1961.9,0.65]
[1688373264007,19.55259289,1962.5,1961.9,0.65]
[1688373265129,19.55259289,1962.5,1961.9,5.74706]